[Event "Early-Titled-Tuesday-Blitz-April-02-2024"]
[Site "Chess.com"]
[Date "2024.04.02"]
[Round "7"]
[White "DanielSaiz01"]
[Black "Misterfox120"]
[Result "1-0"]
[WhiteElo "2288"]
[BlackElo "2396"]
[TimeControl "180+1"]
[EndTime "9:16:52 PDT"]
[Termination "DanielSaiz01 won on time"]

1. d4 {[%clk 0:03:00.9]} 1... Nf6 {[%clk 0:01:54.6]} 2. c4 {[%clk 0:03:00]} 2...
e6 {[%clk 0:01:55.5]} 3. Nf3 {[%clk 0:02:59.5]} 3... b6 {[%clk 0:01:55.7]} 4. g3
{[%clk 0:02:58.7]} 4... Bb7 {[%clk 0:01:55.9]} 5. Bg2 {[%clk 0:02:59.3]} 5...
Be7 {[%clk 0:01:56.7]} 6. O-O {[%clk 0:02:59.7]} 6... O-O {[%clk 0:01:57.4]} 7.
Nc3 {[%clk 0:02:59.8]} 7... Ne4 {[%clk 0:01:58.2]} 8. Qc2 {[%clk 0:02:58.5]}
8... Nxc3 {[%clk 0:01:53.9]} 9. Qxc3 {[%clk 0:02:57.2]} 9... Bf6 {[%clk
0:01:46.5]} 10. b3 {[%clk 0:02:40.1]} 10... c5 {[%clk 0:01:42.9]} 11. e3 {[%clk
0:02:40.2]} 11... Nc6 {[%clk 0:01:21.5]} 12. Bb2 {[%clk 0:02:39.1]} 12... d5
{[%clk 0:01:08.7]} 13. Rfd1 {[%clk 0:02:37.7]} 13... dxc4 {[%clk 0:01:06.7]} 14.
Qxc4 {[%clk 0:02:36.4]} 14... Qc7 {[%clk 0:01:03.8]} 15. Rac1 {[%clk 0:02:23.3]}
15... Rac8 {[%clk 0:00:45.4]} 16. Qe2 {[%clk 0:02:12]} 16... cxd4 {[%clk
0:00:21.6]} 17. exd4 {[%clk 0:01:48.4]} 17... Qb8 {[%clk 0:00:13]} 18. d5 {[%clk
0:01:24.9]} 18... exd5 {[%clk 0:00:13.9]} 19. Bxf6 {[%clk 0:01:23.4]} 19... gxf6
{[%clk 0:00:10.9]} 20. Nh4 {[%clk 0:00:39.1]} 20... Ne5 {[%clk 0:00:07.1]} 21.
Nf5 {[%clk 0:00:32.9]} 21... Rxc1 {[%clk 0:00:03.1]} 22. Rxc1 {[%clk 0:00:33.8]}
22... Kh8 {[%clk 0:00:03.5]} 23. Qh5 {[%clk 0:00:29.2]} 23... Rc8 {[%clk
0:00:03.5]} 24. Re1 {[%clk 0:00:26.1]} 24... Qc7 {[%clk 0:00:01.5]} 25. Qh6
{[%clk 0:00:25.4]} 1-0

[Event "Early-Titled-Tuesday-Blitz-April-02-2024"]
[Site "Chess.com"]
[Date "2024.04.02"]
[Round "7"]
[White "manitodeplomo"]
[Black "ActorXu"]
[Result "0-1"]
[WhiteElo "2660"]
[BlackElo "2844"]
[TimeControl "180+1"]
[EndTime "9:16:55 PDT"]
[Termination "ActorXu won by resignation"]

1. d4 {[%clk 0:03:00.9]} 1... Nf6 {[%clk 0:02:57.1]} 2. c4 {[%clk 0:03:00.8]}
2... e6 {[%clk 0:02:57.4]} 3. Nf3 {[%clk 0:02:59.4]} 3... d5 {[%clk 0:02:56.9]}
4. Nc3 {[%clk 0:02:58.4]} 4... Bb4 {[%clk 0:02:56.2]} 5. Qa4+ {[%clk 0:02:58.1]}
5... Nc6 {[%clk 0:02:56.1]} 6. e3 {[%clk 0:02:59]} 6... O-O {[%clk 0:02:55.6]}
7. Bd2 {[%clk 0:02:59.2]} 7... Re8 {[%clk 0:02:55.5]} 8. Rd1 {[%clk 0:02:58.1]}
8... Bd6 {[%clk 0:02:50.2]} 9. h3 {[%clk 0:02:45.5]} 9... a6 {[%clk 0:02:48]}
10. Bc1 {[%clk 0:02:40.3]} 10... Bd7 {[%clk 0:02:45.8]} 11. Qc2 {[%clk
0:02:39.4]} 11... dxc4 {[%clk 0:02:24.9]} 12. Bxc4 {[%clk 0:02:40.3]} 12... b5
{[%clk 0:02:24.1]} 13. Be2 {[%clk 0:02:36.5]} 13... e5 {[%clk 0:02:22.5]} 14.
O-O {[%clk 0:02:35.3]} 14... e4 {[%clk 0:02:12]} 15. Ng5 {[%clk 0:02:29.3]}
15... Bf5 {[%clk 0:02:07.5]} 16. Nxb5 {[%clk 0:01:07.6]} 16... axb5 {[%clk
0:01:36.8]} 17. Qxc6 {[%clk 0:01:03.2]} 17... h6 {[%clk 0:01:36.9]} 18. Qxb5
{[%clk 0:00:59.8]} 18... Bg6 {[%clk 0:01:33.6]} 19. Bc4 {[%clk 0:00:51]} 19...
hxg5 {[%clk 0:01:30.9]} 20. Qxg5 {[%clk 0:00:50.4]} 20... Kf8 {[%clk 0:01:20.8]}
21. f3 {[%clk 0:00:42]} 21... exf3 {[%clk 0:01:08.5]} 22. Rxf3 {[%clk
0:00:42.9]} 22... Be4 {[%clk 0:00:48.1]} 23. Rf2 {[%clk 0:00:40.9]} 23... c6
{[%clk 0:00:47.8]} 24. Rdf1 {[%clk 0:00:38.5]} 24... Ra5 {[%clk 0:00:46.5]} 25.
Rxf6 {[%clk 0:00:26.8]} 25... Rxg5 {[%clk 0:00:28.4]} 26. Rxf7+ {[%clk
0:00:20.5]} 26... Kg8 {[%clk 0:00:28.9]} 27. Rf8+ {[%clk 0:00:02.3]} 27... Kh7
{[%clk 0:00:28.7]} 0-1

[Event "Early-Titled-Tuesday-Blitz-April-02-2024"]
[Site "Chess.com"]
[Date "2024.04.02"]
[Round "7"]
[White "margarita_2703"]
[Black "Actuary44"]
[Result "0-1"]
[WhiteElo "2326"]
[BlackElo "2512"]
[TimeControl "180+1"]
[EndTime "9:16:55 PDT"]
[Termination "Actuary44 won by resignation"]

1. h3 {[%clk 0:02:55.4]} 1... d6 {[%clk 0:02:59.5]} 2. e4 {[%clk 0:02:46.1]}
2... c5 {[%clk 0:02:58.9]} 3. Nf3 {[%clk 0:02:43.8]} 3... e5 {[%clk 0:02:58.6]}
4. Bc4 {[%clk 0:02:41.7]} 4... Nc6 {[%clk 0:02:55.6]} 5. c3 {[%clk 0:02:38.5]}
5... Be6 {[%clk 0:02:53.4]} 6. Na3 {[%clk 0:02:31]} 6... Nf6 {[%clk 0:02:44.4]}
7. d3 {[%clk 0:02:28.2]} 7... Be7 {[%clk 0:02:43.4]} 8. Bg5 {[%clk 0:02:23.3]}
8... O-O {[%clk 0:02:39.2]} 9. Qe2 {[%clk 0:02:16.3]} 9... h6 {[%clk 0:02:39.4]}
10. Bxf6 {[%clk 0:02:16.3]} 10... Bxf6 {[%clk 0:02:39.4]} 11. O-O {[%clk
0:02:16]} 11... Qd7 {[%clk 0:02:35.1]} 12. Rfd1 {[%clk 0:02:13.2]} 12... Rad8
{[%clk 0:02:30.6]} 13. Nc2 {[%clk 0:02:06.8]} 13... d5 {[%clk 0:02:15.9]} 14.
exd5 {[%clk 0:01:56.4]} 14... Bxd5 {[%clk 0:02:16.8]} 15. Ne3 {[%clk 0:01:43.3]}
15... Be6 {[%clk 0:02:12.9]} 16. Nd2 {[%clk 0:01:15.1]} 16... Be7 {[%clk
0:02:10.6]} 17. Bxe6 {[%clk 0:01:08.2]} 17... Qxe6 {[%clk 0:02:10.1]} 18. Nec4
{[%clk 0:01:06.9]} 18... f5 {[%clk 0:01:59.4]} 19. Nf3 {[%clk 0:01:03.1]} 19...
Bf6 {[%clk 0:01:57.6]} 20. Re1 {[%clk 0:00:43.7]} 20... b5 {[%clk 0:01:20.7]}
21. Na3 {[%clk 0:00:40.2]} 21... a6 {[%clk 0:01:12.7]} 22. Nc2 {[%clk
0:00:20.1]} 22... Rfe8 {[%clk 0:01:09.3]} 23. b3 {[%clk 0:00:19.9]} 23... e4
{[%clk 0:01:06.2]} 24. dxe4 {[%clk 0:00:19.5]} 24... fxe4 {[%clk 0:01:07.1]} 25.
Rad1 {[%clk 0:00:12.9]} 25... Rxd1 {[%clk 0:01:04.5]} 26. Qxd1 {[%clk
0:00:13.8]} 26... Bxc3 {[%clk 0:01:01.9]} 27. Nd2 {[%clk 0:00:11.2]} 27... Rd8
{[%clk 0:00:57.1]} 28. Re2 {[%clk 0:00:05.8]} 28... Qd6 {[%clk 0:00:50.3]} 29.
Ne3 {[%clk 0:00:05.7]} 29... Bxd2 {[%clk 0:00:49]} 30. Nf5 {[%clk 0:00:05.8]}
30... Qf4 {[%clk 0:00:44.9]} 31. Ng3 {[%clk 0:00:04.2]} 31... e3 {[%clk
0:00:39.4]} 32. fxe3 {[%clk 0:00:03.6]} 32... Bxe3+ {[%clk 0:00:39.1]} 33. Kh2
{[%clk 0:00:03.8]} 0-1

[Event "Early-Titled-Tuesday-Blitz-April-02-2024"]
[Site "Chess.com"]
[Date "2024.04.02"]
[Round "7"]
[White "bazar-wokzal"]
[Black "Korchmar_Vasiliy"]
[Result "0-1"]
[WhiteElo "2557"]
[BlackElo "2733"]
[TimeControl "180+1"]
[EndTime "9:17:01 PDT"]
[Termination "Korchmar_Vasiliy won on time"]

1. e4 {[%clk 0:03:00.9]} 1... c5 {[%clk 0:02:56.1]} 2. c3 {[%clk 0:02:57.5]}
2... d5 {[%clk 0:02:56.5]} 3. exd5 {[%clk 0:02:57.1]} 3... Nf6 {[%clk
0:02:57.2]} 4. Bb5+ {[%clk 0:02:56.4]} 4... Nbd7 {[%clk 0:02:56.8]} 5. c4 {[%clk
0:02:56.1]} 5... a6 {[%clk 0:02:56.9]} 6. Bxd7+ {[%clk 0:02:56]} 6... Bxd7
{[%clk 0:02:57.8]} 7. Nf3 {[%clk 0:02:55.4]} 7... e6 {[%clk 0:02:58.2]} 8. dxe6
{[%clk 0:02:51.7]} 8... Bxe6 {[%clk 0:02:59.1]} 9. b3 {[%clk 0:02:51.8]} 9...
Bd6 {[%clk 0:02:08.3]} 10. O-O {[%clk 0:02:50.7]} 10... Qc7 {[%clk 0:02:08.4]}
11. Bb2 {[%clk 0:02:48.6]} 11... O-O-O {[%clk 0:02:08.6]} 12. h3 {[%clk
0:02:41.2]} 12... Rhg8 {[%clk 0:02:00.2]} 13. Qc2 {[%clk 0:02:38.4]} 13... Nh5
{[%clk 0:01:55]} 14. d4 {[%clk 0:02:35.9]} 14... g5 {[%clk 0:01:53.4]} 15. d5
{[%clk 0:02:30]} 15... Bd7 {[%clk 0:01:50.3]} 16. Qxh7 {[%clk 0:02:27.6]} 16...
Nf4 {[%clk 0:01:43.2]} 17. Re1 {[%clk 0:01:59.3]} 17... g4 {[%clk 0:01:38.7]}
18. hxg4 {[%clk 0:01:39.4]} 18... Rxg4 {[%clk 0:01:38.6]} 19. Nh4 {[%clk
0:01:34.3]} 19... Nxg2 {[%clk 0:01:19.2]} 20. Nxg2 {[%clk 0:01:29.1]} 20... Rdg8
{[%clk 0:01:19.2]} 21. Qh3 {[%clk 0:01:17.2]} 21... Rxg2+ {[%clk 0:00:53.9]} 22.
Qxg2 {[%clk 0:01:16.8]} 22... Rxg2+ {[%clk 0:00:54.8]} 23. Kxg2 {[%clk
0:01:17.5]} 23... Qd8 {[%clk 0:00:55.6]} 24. Nc3 {[%clk 0:00:41.3]} 24... Qg5+
{[%clk 0:00:55.6]} 25. Kf1 {[%clk 0:00:41.2]} 25... Qh5 {[%clk 0:00:49.1]} 26.
Re3 {[%clk 0:00:19.6]} 26... Bf4 {[%clk 0:00:41.1]} 27. Rd3 {[%clk 0:00:14.8]}
27... Bf5 {[%clk 0:00:41.4]} 28. Rad1 {[%clk 0:00:12.2]} 28... Bg4 {[%clk
0:00:34.4]} 29. f3 {[%clk 0:00:08.9]} 29... Qh3+ {[%clk 0:00:31.1]} 30. Kf2
{[%clk 0:00:06.9]} 30... Qh2+ {[%clk 0:00:30.3]} 0-1

[Event "Early-Titled-Tuesday-Blitz-April-02-2024"]
[Site "Chess.com"]
[Date "2024.04.02"]
[Round "7"]
[White "wadsy27"]
[Black "francyIM"]
[Result "0-1"]
[WhiteElo "2617"]
[BlackElo "2803"]
[TimeControl "180+1"]
[EndTime "9:17:02 PDT"]
[Termination "francyIM won on time"]

1. Nf3 {[%clk 0:03:00.9]} 1... d5 {[%clk 0:02:58.9]} 2. g3 {[%clk 0:02:59.7]}
2... c6 {[%clk 0:02:59.1]} 3. Bg2 {[%clk 0:02:57.6]} 3... Bf5 {[%clk 0:02:59.5]}
4. c4 {[%clk 0:02:57.9]} 4... e6 {[%clk 0:02:58.9]} 5. Qb3 {[%clk 0:02:55.6]}
5... Qb6 {[%clk 0:02:58.9]} 6. d3 {[%clk 0:02:56.1]} 6... Nf6 {[%clk 0:02:57]}
7. Be3 {[%clk 0:02:55.6]} 7... Qb4+ {[%clk 0:02:54.8]} 8. Nbd2 {[%clk
0:02:50.1]} 8... Nbd7 {[%clk 0:02:52.9]} 9. a3 {[%clk 0:02:41.1]} 9... Qxb3
{[%clk 0:02:52.1]} 10. Nxb3 {[%clk 0:02:42]} 10... a5 {[%clk 0:02:50.2]} 11. O-O
{[%clk 0:02:28.8]} 11... h6 {[%clk 0:02:46]} 12. cxd5 {[%clk 0:02:21.4]} 12...
exd5 {[%clk 0:02:45.4]} 13. Rac1 {[%clk 0:02:18.3]} 13... Be7 {[%clk 0:02:44.4]}
14. Bd2 {[%clk 0:02:07.4]} 14... a4 {[%clk 0:02:39.1]} 15. Na5 {[%clk 0:02:04]}
15... Ra7 {[%clk 0:02:36.1]} 16. Nd4 {[%clk 0:02:02.5]} 16... Bg6 {[%clk
0:02:34.1]} 17. e4 {[%clk 0:01:56.1]} 17... dxe4 {[%clk 0:02:32.7]} 18. dxe4
{[%clk 0:01:56]} 18... Bc5 {[%clk 0:02:26.2]} 19. Ndxc6 {[%clk 0:01:39.8]} 19...
bxc6 {[%clk 0:02:25.8]} 20. Nxc6 {[%clk 0:01:40.7]} 20... Rc7 {[%clk 0:02:11.4]}
21. e5 {[%clk 0:01:38.8]} 21... Ne4 {[%clk 0:02:11.8]} 22. Bxe4 {[%clk
0:00:52.5]} 22... Bxe4 {[%clk 0:02:12.7]} 23. Nb4 {[%clk 0:00:51]} 23... Nxe5
{[%clk 0:02:00.5]} 24. Bf4 {[%clk 0:00:31.1]} 24... f6 {[%clk 0:01:52.2]} 25.
Bxe5 {[%clk 0:00:29.8]} 25... fxe5 {[%clk 0:01:53.1]} 26. Na6 {[%clk 0:00:29]}
26... Bxf2+ {[%clk 0:01:37.7]} 27. Kxf2 {[%clk 0:00:29.9]} 27... Rxc1 {[%clk
0:01:31.3]} 28. Rxc1 {[%clk 0:00:28.2]} 28... O-O+ {[%clk 0:01:26.9]} 29. Ke3
{[%clk 0:00:28.3]} 29... Bd5 {[%clk 0:01:24.1]} 30. Rc5 {[%clk 0:00:26.4]} 30...
Bb7 {[%clk 0:01:24]} 31. Nb4 {[%clk 0:00:22.7]} 31... Rf3+ {[%clk 0:01:24.3]}
32. Ke2 {[%clk 0:00:23]} 32... Rb3 {[%clk 0:01:25.2]} 33. Rc2 {[%clk 0:00:08.1]}
33... Kh7 {[%clk 0:01:20.2]} 34. Na2 {[%clk 0:00:07.7]} 34... Ba6+ {[%clk
0:01:16]} 35. Kf2 {[%clk 0:00:06.3]} 35... e4 {[%clk 0:01:14.1]} 36. Nc3 {[%clk
0:00:05.9]} 36... Bd3 {[%clk 0:01:12.4]} 37. Rd2 {[%clk 0:00:05.7]} 37... Kg6
{[%clk 0:01:12.3]} 38. Ke3 {[%clk 0:00:06.2]} 38... Kf5 {[%clk 0:01:12.8]} 39.
g4+ {[%clk 0:00:06.1]} 39... Kxg4 {[%clk 0:01:11.4]} 40. Nxe4 {[%clk 0:00:04.7]}
40... Bxe4+ {[%clk 0:01:05.5]} 41. Kxe4 {[%clk 0:00:05.6]} 41... Kh3 {[%clk
0:01:05.8]} 42. Kd4 {[%clk 0:00:05.6]} 42... g5 {[%clk 0:01:05.3]} 43. Kc4
{[%clk 0:00:02]} 43... g4 {[%clk 0:01:01.8]} 0-1

[Event "Early-Titled-Tuesday-Blitz-April-02-2024"]
[Site "Chess.com"]
[Date "2024.04.02"]
[Round "7"]
[White "SteinerPro12"]
[Black "Aleksandar-Topalov"]
[Result "0-1"]
[WhiteElo "2134"]
[BlackElo "2332"]
[TimeControl "180+1"]
[EndTime "9:17:11 PDT"]
[Termination "Aleksandar-Topalov won on time"]

1. e4 {[%clk 0:03:00.9]} 1... e6 {[%clk 0:02:56.1]} 2. Nf3 {[%clk 0:02:59.5]}
2... d5 {[%clk 0:02:56]} 3. e5 {[%clk 0:02:59.9]} 3... Ne7 {[%clk 0:02:55.6]} 4.
d4 {[%clk 0:02:37]} 4... Qd7 {[%clk 0:02:55.6]} 5. Bd3 {[%clk 0:02:34.5]} 5...
b6 {[%clk 0:02:55.7]} 6. O-O {[%clk 0:02:28.3]} 6... Ba6 {[%clk 0:02:55.5]} 7.
Bxa6 {[%clk 0:02:28]} 7... Nxa6 {[%clk 0:02:55.8]} 8. c3 {[%clk 0:02:27.4]} 8...
c5 {[%clk 0:02:53.5]} 9. Nbd2 {[%clk 0:02:25.6]} 9... Nb8 {[%clk 0:02:53.3]} 10.
Re1 {[%clk 0:02:16.9]} 10... Nbc6 {[%clk 0:02:53.3]} 11. Nf1 {[%clk 0:02:15]}
11... Nf5 {[%clk 0:02:53.4]} 12. g4 {[%clk 0:02:09.7]} 12... Nfe7 {[%clk
0:02:53.2]} 13. Ng3 {[%clk 0:01:55.3]} 13... h6 {[%clk 0:02:46.5]} 14. Be3
{[%clk 0:01:47.7]} 14... c4 {[%clk 0:02:42.4]} 15. b3 {[%clk 0:01:36.1]} 15...
Na5 {[%clk 0:02:41]} 16. Nd2 {[%clk 0:01:30.9]} 16... Rc8 {[%clk 0:02:28]} 17.
b4 {[%clk 0:01:28.5]} 17... Nb7 {[%clk 0:02:26.3]} 18. a4 {[%clk 0:01:28]} 18...
a6 {[%clk 0:02:26.5]} 19. f4 {[%clk 0:01:22.7]} 19... g6 {[%clk 0:02:25.2]} 20.
Qf3 {[%clk 0:01:16.8]} 20... Bg7 {[%clk 0:02:09.7]} 21. Rf1 {[%clk 0:01:05.8]}
21... Nd8 {[%clk 0:02:07.8]} 22. f5 {[%clk 0:00:28.6]} 22... exf5 {[%clk
0:02:06.9]} 23. gxf5 {[%clk 0:00:28.6]} 23... Nxf5 {[%clk 0:02:05.2]} 24. Nxf5
{[%clk 0:00:28.6]} 24... Qxf5 {[%clk 0:02:05.4]} 25. Qxf5 {[%clk 0:00:28.6]}
25... gxf5 {[%clk 0:02:05.1]} 26. Rxf5 {[%clk 0:00:28.4]} 26... Ne6 {[%clk
0:02:00.2]} 27. Raf1 {[%clk 0:00:25.3]} 27... Rc7 {[%clk 0:01:59.5]} 28. R1f2
{[%clk 0:00:20.3]} 28... Bf8 {[%clk 0:01:57.9]} 29. Rg2 {[%clk 0:00:20]} 29...
h5 {[%clk 0:01:51.9]} 30. Nf1 {[%clk 0:00:19.1]} 30... Bh6 {[%clk 0:01:50.1]}
31. Bxh6 {[%clk 0:00:14]} 31... Rxh6 {[%clk 0:01:49.4]} 32. Ng3 {[%clk
0:00:14.7]} 32... h4 {[%clk 0:01:47.2]} 33. Ne2 {[%clk 0:00:14]} 33... Kf8
{[%clk 0:01:41.6]} 34. Nf4 {[%clk 0:00:13.8]} 34... Nxf4 {[%clk 0:01:41.4]} 35.
Rxf4 {[%clk 0:00:14]} 35... Re7 {[%clk 0:01:37.4]} 36. Rgg4 {[%clk 0:00:12.6]}
36... h3 {[%clk 0:01:36.9]} 37. Rh4 {[%clk 0:00:10.5]} 37... Ree6 {[%clk
0:01:36.2]} 38. Kf2 {[%clk 0:00:06.1]} 38... Reg6 {[%clk 0:01:34.2]} 39. Rhg4
{[%clk 0:00:05.2]} 39... Rxg4 {[%clk 0:01:29.4]} 40. Rxg4 {[%clk 0:00:05.2]}
40... f6 {[%clk 0:01:22.8]} 41. exf6 {[%clk 0:00:02.8]} 41... Rxf6+ {[%clk
0:01:22.8]} 42. Kg3 {[%clk 0:00:03.4]} 42... Rf1 {[%clk 0:01:11.7]} 43. Rg5
{[%clk 0:00:03.8]} 43... Rc1 {[%clk 0:01:10.7]} 44. Rxd5 {[%clk 0:00:03.3]}
44... Rxc3+ {[%clk 0:01:11]} 45. Kg4 {[%clk 0:00:03.5]} 45... Rb3 {[%clk
0:01:11.3]} 46. b5 {[%clk 0:00:03]} 46... axb5 {[%clk 0:01:10.5]} 47. axb5
{[%clk 0:00:03.7]} 47... c3 {[%clk 0:01:10.4]} 48. Rd8+ {[%clk 0:00:04.2]} 48...
Ke7 {[%clk 0:01:10.3]} 49. Rc8 {[%clk 0:00:04.9]} 49... Kd6 {[%clk 0:01:08.1]}
50. Rc6+ {[%clk 0:00:04]} 50... Kd5 {[%clk 0:01:08.5]} 51. Rxb6 {[%clk
0:00:02.6]} 51... Kxd4 {[%clk 0:01:08.7]} 52. Rc6 {[%clk 0:00:02.3]} 52... Rxb5
{[%clk 0:01:06.9]} 53. Kxh3 {[%clk 0:00:02.4]} 53... Rc5 {[%clk 0:01:07.3]} 54.
Rd6+ {[%clk 0:00:02.3]} 54... Ke3 {[%clk 0:01:07.5]} 0-1

[Event "Early-Titled-Tuesday-Blitz-April-02-2024"]
[Site "Chess.com"]
[Date "2024.04.02"]
[Round "7"]
[White "SaqoChess_Twitch"]
[Black "A-Fier"]
[Result "1-0"]
[WhiteElo "2697"]
[BlackElo "2880"]
[TimeControl "180+1"]
[EndTime "9:17:14 PDT"]
[Termination "SaqoChess_Twitch won by resignation"]

1. d4 {[%clk 0:03:00.9]} 1... Nf6 {[%clk 0:02:54.1]} 2. c4 {[%clk 0:03:01.3]}
2... c5 {[%clk 0:02:54.3]} 3. d5 {[%clk 0:03:01]} 3... e6 {[%clk 0:02:54.7]} 4.
Nc3 {[%clk 0:03:00.9]} 4... exd5 {[%clk 0:02:55.3]} 5. cxd5 {[%clk 0:03:01.8]}
5... d6 {[%clk 0:02:55.9]} 6. Nf3 {[%clk 0:03:02.3]} 6... g6 {[%clk 0:02:56.4]}
7. Bf4 {[%clk 0:02:56.7]} 7... Bg7 {[%clk 0:02:56.7]} 8. h3 {[%clk 0:02:53.1]}
8... O-O {[%clk 0:02:56.1]} 9. e3 {[%clk 0:02:53.7]} 9... Re8 {[%clk 0:02:56.8]}
10. Be2 {[%clk 0:02:53.7]} 10... Na6 {[%clk 0:02:57.5]} 11. O-O {[%clk
0:02:53.9]} 11... Nc7 {[%clk 0:02:58.3]} 12. a4 {[%clk 0:02:53.6]} 12... Ne4
{[%clk 0:02:58.9]} 13. Rc1 {[%clk 0:02:47.5]} 13... Nxc3 {[%clk 0:02:55.9]} 14.
bxc3 {[%clk 0:02:48.4]} 14... Bf5 {[%clk 0:02:49.6]} 15. c4 {[%clk 0:02:47.2]}
15... Na6 {[%clk 0:02:47.5]} 16. Ne1 {[%clk 0:02:41.2]} 16... Nb4 {[%clk
0:02:45.6]} 17. Nd3 {[%clk 0:02:40.3]} 17... Bxd3 {[%clk 0:02:43.7]} 18. Bxd3
{[%clk 0:02:41.2]} 18... b6 {[%clk 0:02:43.6]} 19. Bb1 {[%clk 0:02:38.6]} 19...
a6 {[%clk 0:02:43.1]} 20. e4 {[%clk 0:02:36.8]} 20... Qd7 {[%clk 0:02:42.9]} 21.
Re1 {[%clk 0:02:35]} 21... Rab8 {[%clk 0:02:35.9]} 22. Qb3 {[%clk 0:02:28.7]}
22... b5 {[%clk 0:02:34.9]} 23. axb5 {[%clk 0:02:28]} 23... axb5 {[%clk
0:02:35.8]} 24. Bg3 {[%clk 0:02:26.4]} 24... Bd4 {[%clk 0:02:30.7]} 25. Kh2
{[%clk 0:02:24.9]} 25... bxc4 {[%clk 0:02:23.6]} 26. Qxc4 {[%clk 0:02:24.9]}
26... Bb2 {[%clk 0:02:13.3]} 27. Rcd1 {[%clk 0:02:23.7]} 27... Be5 {[%clk
0:02:08.1]} 28. f4 {[%clk 0:02:23.8]} 28... Bg7 {[%clk 0:02:06.8]} 29. e5 {[%clk
0:02:22.7]} 29... Rbd8 {[%clk 0:01:59.5]} 30. e6 {[%clk 0:02:16.1]} 30... fxe6
{[%clk 0:01:59.8]} 31. dxe6 {[%clk 0:02:14.1]} 31... Qe7 {[%clk 0:02:00]} 32. f5
{[%clk 0:02:11.1]} 32... d5 {[%clk 0:01:58.8]} 33. Qg4 {[%clk 0:02:11.3]} 33...
gxf5 {[%clk 0:01:55.5]} 34. Qxf5 {[%clk 0:02:10]} 34... Bc3 {[%clk 0:01:52.5]}
35. Re3 {[%clk 0:02:03.2]} 35... Bd4 {[%clk 0:01:52.8]} 36. Rf3 {[%clk
0:01:23.7]} 36... Rf8 {[%clk 0:01:50.5]} 37. Qg4+ {[%clk 0:01:21.4]} 37... Bg7
{[%clk 0:01:49.9]} 38. Qh5 {[%clk 0:00:58.4]} 38... Rxf3 {[%clk 0:01:49.7]} 39.
Bxh7+ {[%clk 0:00:51.3]} 39... Kf8 {[%clk 0:01:50.2]} 40. Qxf3+ {[%clk
0:00:50.9]} 40... Qf6 {[%clk 0:01:50.8]} 41. Qe2 {[%clk 0:00:39.2]} 41... Ke7
{[%clk 0:01:49.2]} 42. Rf1 {[%clk 0:00:30.9]} 42... Qxe6 {[%clk 0:01:46.8]} 43.
Bh4+ {[%clk 0:00:31.3]} 43... Kd6 {[%clk 0:01:47.3]} 44. Qxe6+ {[%clk
0:00:30.9]} 44... Kxe6 {[%clk 0:01:47.7]} 45. Bxd8 {[%clk 0:00:31.7]} 45... c4
{[%clk 0:01:48.2]} 46. Bg8+ {[%clk 0:00:27.9]} 46... Kd6 {[%clk 0:01:47.3]} 47.
Ba5 {[%clk 0:00:23.7]} 47... Nd3 {[%clk 0:01:44.5]} 48. g4 {[%clk 0:00:20.4]}
48... c3 {[%clk 0:01:44.4]} 49. h4 {[%clk 0:00:19.3]} 49... c2 {[%clk
0:01:44.7]} 50. Bd2 {[%clk 0:00:19.1]} 50... Nc5 {[%clk 0:01:31.6]} 51. h5
{[%clk 0:00:11.4]} 51... Ne4 {[%clk 0:01:31.8]} 52. Bc1 {[%clk 0:00:10.9]} 52...
d4 {[%clk 0:01:30.5]} 53. Bh7 {[%clk 0:00:10.6]} 53... Kd5 {[%clk 0:01:30.3]}
54. Rf3 {[%clk 0:00:08.1]} 54... Bf6 {[%clk 0:01:12.4]} 55. Bxe4+ {[%clk
0:00:06.4]} 55... Ke5 {[%clk 0:01:12]} 56. Bxc2 {[%clk 0:00:05.3]} 56... Bh4
{[%clk 0:01:11.9]} 57. Rf5+ {[%clk 0:00:05.4]} 57... Ke6 {[%clk 0:01:12.6]} 58.
Bd3 {[%clk 0:00:06.3]} 58... Kd6 {[%clk 0:01:13.2]} 59. Kg2 {[%clk 0:00:07.2]}
1-0

[Event "Early-Titled-Tuesday-Blitz-April-02-2024"]
[Site "Chess.com"]
[Date "2024.04.02"]
[Round "7"]
[White "chess123456s"]
[Black "ragnaroek66"]
[Result "0-1"]
[WhiteElo "2585"]
[BlackElo "2511"]
[TimeControl "180+1"]
[EndTime "9:17:18 PDT"]
[Termination "ragnaroek66 won on time"]

1. d4 {[%clk 0:03:00.9]} 1... Nf6 {[%clk 0:02:59.5]} 2. Nc3 {[%clk 0:03:00.8]}
2... d5 {[%clk 0:02:58.7]} 3. Bf4 {[%clk 0:03:01.2]} 3... a6 {[%clk 0:02:58.5]}
4. e3 {[%clk 0:03:01.3]} 4... b5 {[%clk 0:02:58.9]} 5. a3 {[%clk 0:03:01.5]}
5... Bb7 {[%clk 0:02:53]} 6. b4 {[%clk 0:03:00.9]} 6... e6 {[%clk 0:02:48.7]} 7.
Nf3 {[%clk 0:03:01.2]} 7... Nbd7 {[%clk 0:02:47.8]} 8. Bd3 {[%clk 0:03:00.1]}
8... Nb6 {[%clk 0:02:48.1]} 9. O-O {[%clk 0:02:57.8]} 9... Nc4 {[%clk
0:02:48.5]} 10. Qe2 {[%clk 0:02:53.1]} 10... Bd6 {[%clk 0:02:48.2]} 11. Bg3
{[%clk 0:02:52.4]} 11... Ne4 {[%clk 0:02:42.5]} 12. Bxe4 {[%clk 0:02:41.7]}
12... dxe4 {[%clk 0:02:40.5]} 13. Nd2 {[%clk 0:02:42.3]} 13... Nxd2 {[%clk
0:02:38.6]} 14. Qxd2 {[%clk 0:02:43.2]} 14... O-O {[%clk 0:02:37.9]} 15. Rfb1
{[%clk 0:02:29.5]} 15... Qe7 {[%clk 0:02:35.1]} 16. Bxd6 {[%clk 0:02:23]} 16...
cxd6 {[%clk 0:02:25.5]} 17. a4 {[%clk 0:02:22.7]} 17... bxa4 {[%clk 0:02:26.4]}
18. Nxa4 {[%clk 0:02:21.6]} 18... Rac8 {[%clk 0:02:22]} 19. c3 {[%clk
0:02:11.2]} 19... Qg5 {[%clk 0:02:13.7]} 20. h3 {[%clk 0:01:51.8]} 20... f5
{[%clk 0:02:10.7]} 21. Nb2 {[%clk 0:01:47]} 21... f4 {[%clk 0:02:08.9]} 22. exf4
{[%clk 0:01:44.5]} 22... Rxf4 {[%clk 0:02:04.9]} 23. Nd1 {[%clk 0:01:44.3]}
23... Rcf8 {[%clk 0:01:24.6]} 24. g3 {[%clk 0:01:36.8]} 24... Qg6 {[%clk
0:01:14.1]} 25. Kh2 {[%clk 0:01:23.2]} 25... Rf3 {[%clk 0:01:07.6]} 26. Rb2
{[%clk 0:01:12.5]} 26... h5 {[%clk 0:00:38.1]} 27. h4 {[%clk 0:01:04.9]} 27...
e3 {[%clk 0:00:35.2]} 28. Nxe3 {[%clk 0:00:59.8]} 28... Qe4 {[%clk 0:00:27.6]}
29. Re1 {[%clk 0:00:01.2]} 29... Kh8 {[%clk 0:00:13.1]} 30. d5 {[%clk
0:00:01.7]} 30... exd5 {[%clk 0:00:12.4]} 0-1